bitfinex-derivatives/quotes_SOLF0:USTF0_20250716
["timestamp","ask_amount","ask_price","bid_price","bid_amount"]
[1752683274068,3.46,171.68,171.67,5.8231]
[1752683274270,12.69757751,171.76,171.67,3.3]
[1752683274467,3.46,171.75,171.67,3.3]
[1752683274671,5.821,171.74,171.67,3.3]
[1752683274872,3.46,171.73,171.67,3.3]
[1752683275067,3.46,171.73,171.69,0.04128826]
[1752683275574,3.46,171.72,171.69,0.04128826]
[1752683275963,185.44,171.77,171.69,0.04128826]
[1752683275964,3.46,171.7,171.69,0.04128826]
[1752683276777,3.46,171.7,171.69,5.86378826]
[1752683277164,3.46,171.72,171.69,0.04128826]
[1752683277370,3.46,171.72,171.71,5.8218]
[1752683277568,3.46,171.77,171.69,0.04128826]
[1752683278071,3.46,171.74,171.69,0.04128826]
[1752683278272,3.46,171.72,171.69,3.34128826]
[1752683278471,5.8208,171.75,171.69,3.34128826]
[1752683278673,3.46,171.77,171.69,3.34128826]
[1752683279070,3.46,171.77,171.71,5.8216]
[1752683279376,3.46,171.74,171.71,3.3]
[1752683279573,3.46,171.77,171.69,3.34128826]
[1752683279878,3.46,171.75,171.69,3.3]
[1752683280174,16.27937236,171.77,171.71,3.33759698]
[1752683280378,16.27937236,171.77,171.71,16.03517449]
[1752683280379,3.46,171.77,171.71,16.03517449]
[1752683280570,3.46,171.77,171.72,3.3]
[1752683280766,3.46,171.76,171.73,3.3]
[1752683280968,3.46,171.79,171.73,3.3]
[1752683281175,3.46,171.78,171.75,3.3]
[1752683281773,3.46,171.8,171.75,12.69757751]
[1752683281973,3.46,171.82,171.79,3.3]
[1752683282174,3.46,171.88,171.82,3.3]
[1752683282369,3.46,171.89,171.86,3.3]
[1752683282575,3.46,171.91,171.88,3.3]
[1752683283175,185.3,171.94,171.88,12.69757751]
[1752683283176,3.46,171.94,171.88,12.69757751]
[1752683283369,502.96,171.99,171.94,5.8138]
[1752683283577,3.46,171.96,171.93,3.3]
[1752683283968,3.46,171.95,171.91,12.69757751]
[1752683284169,12.69757751,172.04,171.84,12.69757751]
[1752683284170,16.27937236,172.03,171.95,3.3]
[1752683284374,3.46,172.02,171.99,12.69757751]
[1752683284574,3.46,172.06,171.99,12.69757751]
[1752683284771,3.46,172.06,172.0,3.3]
[1752683285173,0.0389175,172.05,172.0,3.3]
[1752683285370,3.4989175,172.05,172.02,3.3]
[1752683285671,3.4989175,172.05,171.99,16.0415782]
[1752683285871,9.3092175,172.05,171.99,0.04400069]
[1752683286077,3.4989175,172.05,171.99,0.04400069]
[1752683286280,3.46,172.02,171.92,3.3]
[1752683286577,3.46,171.98,171.9,12.69757751]
[1752683286778,3.46,171.98,171.89,3.3]
[1752683287275,3.46,171.95,171.84,3.3]
[1752683287576,3.46,171.94,171.84,3.3]
[1752683288176,0.04402697,171.91,171.84,3.3]
[1752683288778,0.04402697,171.91,171.86,5.8167]
[1752683288979,3.46,171.9,171.86,5.8167]
[1752683289176,3.46,171.9,171.86,9.1167]
[1752683289474,0.04402697,171.91,171.84,3.3]
[1752683289874,3.46,171.93,171.84,3.3]
[1752683290074,3.46,171.93,171.89,9.1154]
[1752683290479,3.50394007,171.93,171.89,9.1154]
[1752683291074,3.50394007,171.93,171.89,3.3]
[1752683291478,3.46,171.92,171.86,3.3]
[1752683291778,3.46,171.92,171.86,9.1164]
[1752683291980,3.46,171.92,171.86,5.8164]
[1752683292179,0.0433988,171.91,171.86,5.8164]
[1752683292377,3.46,171.9,171.82,3.3]
[1752683292583,0.0433988,171.91,171.85,3.3]
[1752683292875,0.0433988,171.91,171.89,5.8154]
[1752683293076,3.46,171.93,171.9,3.3]
[1752683293276,3.46,171.91,171.81,3.3]
[1752683293585,3.46,171.91,171.83,3.3]
[1752683294078,12.69757751,171.93,171.84,3.3]
[1752683294079,3.46,171.88,171.84,3.3]
[1752683294482,3.46,171.87,171.81,3.3]
[1752683295179,3.46,171.88,171.77,12.69757751]
[1752683295380,3.46,171.88,171.78,3.3]
[1752683295684,3.46,171.86,171.78,3.3]
[1752683295881,0.03876309,171.85,171.78,3.3]
[1752683297187,3.47,171.84,171.78,3.3]
[1752683297478,0.03876309,171.85,171.78,3.3]
[1752683297684,0.03876309,171.85,171.84,5.8174]
[1752683297885,0.03876309,171.85,171.84,9.1074]
[1752683298684,3.50876309,171.85,171.78,3.29]
[1752683298882,0.03876309,171.85,171.8,12.69757751]
[1752683299084,0.03876309,171.85,171.81,3.29]
[1752683299686,0.03876309,171.85,171.84,5.8174]
[1752683299883,0.03876309,171.85,171.84,9.1074]
[1752683300480,0.03876309,171.85,171.84,5.8174]
[1752683300685,0.03876309,171.85,171.84,9.1074]
[1752683300979,3.47,171.95,171.88,3.29]
[1752683301786,3.47,171.95,171.85,15.98757751]
[1752683301981,3.47,171.95,171.85,3.29]
[1752683302182,3.47,171.94,171.83,3.29]
[1752683302481,3.47,171.94,171.86,12.69757751]
[1752683302683,3.51232743,171.92,171.91,5.815]
[1752683303083,3.47,171.92,171.91,5.815]
[1752683303279,3.47,171.97,171.89,15.98757751]
[1752683303686,3.47,171.97,171.92,5.8146]
[1752683303887,3.47,171.97,171.91,0.04009244]
[1752683305896,3.47,171.96,171.92,5.8147]
[1752683306486,82.1,172.0,171.91,0.04009244]
[1752683306487,3.47,171.95,171.91,0.04009244]
[1752683308597,3.47,171.95,171.91,3.33009244]
[1752683308795,0.04226572,171.96,171.91,3.33009244]
[1752683308992,3.47,171.94,171.91,3.33009244]
[1752683309192,0.04226572,171.96,171.91,0.04009244]
[1752683309193,3.47,171.95,171.91,0.04009244]
[1752683309393,3.47,171.93,171.92,5.8147]
[1752683309897,3.47,171.95,171.91,3.33009244]
[1752683310096,0.04226572,171.96,171.91,3.33009244]
[1752683310298,3.47,171.94,171.91,3.33009244]
[1752683310694,0.04226572,171.96,171.92,3.29]
[1752683310897,0.04226572,171.96,171.95,3.29]
[1752683311198,0.04226572,171.96,171.95,9.1037]
[1752683311704,3.51226572,171.96,171.95,5.8137]
[1752683311900,3.51226572,171.96,171.93,12.69757751]
[1752683312096,0.04226572,171.96,171.93,12.69757751]
[1752683312300,0.04226572,171.96,171.95,9.1037]
[1752683313402,3.47,172.02,171.95,3.29]
[1752683313599,188.07,172.05,171.98,12.69757751]
[1752683313901,188.07,172.05,171.99,3.29]
[1752683314096,188.07,172.05,172.02,5.8111]
[1752683314297,188.07,172.05,171.99,3.29]
[1752683314598,188.07,172.05,172.02,5.811]
[1752683314801,3.47,172.08,172.02,12.69757751]
[1752683315002,3.47,172.08,172.02,15.98757751]
[1752683315203,3.47,172.07,172.05,5.81]
[1752683315403,3.47,172.07,172.03,3.29]
[1752683315598,3.47,172.07,172.04,3.29]
[1752683315797,3.47,172.07,172.05,5.8103]
[1752683315994,3.47,172.07,172.04,3.29]
[1752683316199,3.47,172.11,172.05,3.29]
[1752683316494,3.47,172.11,172.07,5.8096]
[1752683316900,5.8083,172.11,172.05,3.29]
[1752683317097,184.44,172.14,172.05,15.98757751]
[1752683317401,184.44,172.14,171.96,24.32367751]
[1752683317402,3.47,172.08,172.07,0.03948514]
[1752683317603,3.47,172.16,172.08,3.29]
[1752683317804,3.47,172.15,172.09,12.69757751]
[1752683318005,3.47,172.14,172.11,5.8082]
[1752683318200,3.47,172.12,172.1,0.03681166]
[1752683318600,3.47,172.17,172.1,0.03681166]
[1752683319502,5.8072,172.15,172.1,5.84521166]
[1752683319804,3.47,172.12,172.1,5.84521166]
[1752683320503,3.47,172.14,172.1,0.03681166]
[1752683320703,3.47,172.17,172.11,7.55787504]
[1752683320903,3.47,172.17,172.14,3.29]
[1752683321104,3.47,172.17,172.15,5.8069]
[1752683321301,3.47,172.17,172.14,3.29]
[1752683321506,184.32,172.2,172.13,7.55787504]
[1752683321808,3.47,172.15,172.07,7.55787504]
[1752683322104,3.47,172.14,172.04,10.84787504]
[1752683322299,3.47,172.11,172.04,10.84787504]
[1752683322807,7.55787504,172.2,172.08,3.29]
[1752683323007,7.55787504,172.16,172.08,3.29]
[1752683323202,3.47,172.15,172.08,3.29]
[1752683323404,3.47,172.14,172.11,5.808]
[1752683323600,3.47,172.12,172.11,5.808]
[1752683324308,5.807,172.15,172.1,0.03896932]
[1752683324309,3.47,172.15,172.1,0.03896932]
[1752683325309,3.47,172.14,172.1,0.03896932]
[1752683325611,3.47,172.12,172.1,0.03896932]
[1752683325804,3.47,172.11,172.1,0.03896932]
[1752683326399,12.63593986,172.14,171.96,30.14635287]
[1752683326400,12.63593986,172.14,172.0,12.63593986]
[1752683326601,3.47,172.08,172.01,3.33]
[1752683326812,3.27,172.11,172.04,3.13]
[1752683327010,5.8081,172.12,172.08,5.8091]
[1752683327305,15.90593986,172.11,171.97,3.13]
[1752683327510,3.27,172.06,171.98,3.13]
[1752683328010,3.27,172.04,172.01,5.8115]
[1752683328212,3.31102808,172.04,172.01,5.8115]
[1752683328612,3.27,172.03,172.01,5.8115]
[1752683328911,0.04102808,172.04,171.98,3.13]
[1752683329112,0.04102808,172.04,172.02,3.13]
[1752683329309,3.27,172.1,172.01,3.13]
[1752683329606,5.8078,172.13,172.04,3.13]
[1752683329812,3.27,172.12,172.04,3.13]
[1752683330205,184.1,172.16,171.98,11.6254]
[1752683330405,3.27,172.14,172.06,5.8096]
[1752683330605,3.27,172.14,172.04,3.13]
[1752683330606,3.27,172.12,172.05,0.03723382]
[1752683331109,5.8092,172.09,172.05,0.03723382]
[1752683331316,3.27,172.12,172.05,0.03723382]
[1752683331712,3.27,172.12,172.06,3.13]
[1752683331906,3.27,172.12,172.06,15.76593986]
[1752683332112,3.27,172.14,172.11,5.8083]
[1752683332406,11.606,172.27,172.09,12.63593986]
[1752683332407,12.63593986,172.22,172.09,12.63593986]
[1752683332610,3.27,172.21,172.15,5.8066]
[1752683332814,3.27,172.21,172.14,0.03740733]
[1752683333014,3.27,172.21,172.15,3.13]
[1752683333210,3.27,172.2,172.16,3.13]
[1752683333413,3.27,172.23,172.15,12.63593986]
[1752683333610,3.27,172.23,172.17,3.13]
[1752683333806,3.27,172.21,172.19,5.8053]
[1752683334006,3.27,172.21,172.18,3.13]
[1752683334313,3.27,172.21,172.19,5.8056]
[1752683334715,3.27,172.2,172.19,5.8056]
[1752683335214,3.27,172.24,172.2,3.13]
[1752683335409,3.27,172.27,172.19,3.13]
[1752683335616,183.98,172.29,172.19,3.13]
[1752683335809,501.76,172.34,172.19,3.13]
[1752683335810,3.27,172.28,172.19,3.13]
[1752683336015,3.27,172.28,172.22,3.17282554]
[1752683336207,3.27,172.29,172.25,5.8033]
[1752683336412,3.27,172.29,172.22,3.13]
[1752683336708,3.27,172.29,172.25,0.04096099]
[1752683337011,3.27,172.29,172.26,3.13]
[1752683337316,183.98,172.3,172.25,0.04096099]
[1752683337523,5.8023,172.29,172.25,0.04096099]
[1752683337818,3.27,172.27,172.25,0.04096099]
[1752683338118,3.27,172.26,172.25,0.04096099]
[1752683338913,12.63593986,172.31,172.26,5.803]
[1752683339113,3.27,172.28,172.25,3.17096099]
[1752683339315,3.27,172.3,172.26,3.13]
[1752683339515,3.27,172.33,172.27,3.13]
[1752683340226,3.27,172.37,172.3,15.76593986]
[1752683340516,3.27,172.37,172.31,3.13]
[1752683340717,3.27,172.37,172.34,3.13]
[1752683340918,3.27,172.36,172.32,0.0446258]
[1752683341118,15.90593986,172.36,172.32,0.0446258]
[1752683341319,3.27,172.34,172.26,3.13]
[1752683341818,9.0708,172.34,172.28,5.8025]
[1752683342018,3.27,172.33,172.26,3.13]
[1752683342220,3.27,172.33,171.99,243.50463295]
[1752683342221,3.27,172.33,172.28,0.04167783]
[1752683342517,183.82,172.35,172.23,3.13]
[1752683342518,3.27,172.31,172.23,3.13]
[1752683343018,3.27,172.33,172.29,0.04086145]
[1752683343216,183.78,172.36,172.27,3.13]
[1752683343411,3.27,172.35,172.29,0.04380431]
[1752683344119,3.27,172.4,172.32,3.13]
[1752683344521,183.74,172.41,172.32,3.13]
[1752683344522,3.27,172.38,172.32,3.13]
[1752683344817,3.27,172.38,172.34,0.04334804]
[1752683345017,3.27,172.38,172.37,5.7995]
[1752683346014,3.27,172.4,172.34,0.04334804]
[1752683346818,3.27,172.4,172.35,5.8001]
[1752683347121,3.27,172.4,172.34,0.04334804]
[1752683347521,7.53924716,172.4,172.34,0.04334804]
[1752683347724,3.27,172.35,172.27,3.13]
[1752683347914,3.27,172.33,172.27,3.13]
[1752683348411,183.64,172.35,172.28,3.13]
[1752683348616,3.27,172.34,172.28,3.13]
[1752683349014,3.27,172.32,172.28,3.13]
[1752683349420,3.27,172.32,172.29,3.13]
[1752683350015,0.04447018,172.33,172.3,3.13]
[1752683350417,0.04447018,172.33,172.26,3.13]
[1752683350613,3.27,172.32,172.26,3.13]
[1752683351223,3.3091227,172.31,172.27,3.13]
[1752683351522,0.0391227,172.31,172.3,3.13]
[1752683351730,0.0391227,172.31,172.3,8.9319]
[1752683352726,2.27e-05,172.31,172.3,8.9319]
[1752683353614,183.56,172.38,172.32,3.13]
[1752683353817,3.27,172.38,172.26,11.6063]
[1752683354020,3.27,172.38,172.37,5.7995]
[1752683354417,3.27,172.38,172.34,3.13]
[1752683354418,3.27,172.4,172.32,7.53924716]
[1752683354618,3.27,172.39,172.37,5.7995]
[1752683354823,3.27,172.38,172.37,5.7995]
[1752683355429,183.54,172.44,172.35,3.13]
[1752683355430,183.5,172.43,172.35,3.13]
[1752683355729,3.27,172.42,172.35,3.13]
[1752683355921,3.27,172.4,172.32,7.53924716]
[1752683356727,3.27,172.4,172.31,3.13]
[1752683356928,3.23,172.39,172.31,3.13]
[1752683357826,3.23,172.39,172.33,3.31]
[1752683358029,3.23,172.39,172.37,5.7992]
[1752683358222,3.23,172.38,172.37,5.7992]
[1752683359324,3.23,172.42,172.4,5.7983]
[1752683359523,3.23,172.41,172.35,3.31]
[1752683359918,3.23,172.41,172.4,5.7985]
[1752683360223,10.76924716,172.41,172.32,3.31]
[1752683360521,3.23,172.4,172.32,3.31]
[1752683360921,7.53924716,172.4,172.32,3.31]
[1752683361121,3.23,172.39,172.32,3.31]
[1752683361423,183.42,172.43,172.28,11.6051]
[1752683361424,3.23,172.38,172.35,3.31]
[1752683362327,3.23,172.37,172.34,0.0378049]
[1752683362528,3.23,172.42,172.35,3.31]
[1752683362732,3.23,172.42,172.41,5.7982]
[1752683363417,3.23,172.42,172.4,5.83624473]
[1752683363616,3.23,172.44,172.4,0.03784473]
[1752683363824,3.23,172.43,172.4,0.03784473]
[1752683364021,183.36,172.48,172.41,10.84924716]
[1752683364227,3.23,172.45,172.42,3.31]
[1752683364624,3.23,172.45,172.44,5.7972]
[1752683364823,3.23,172.49,172.44,3.31]
[1752683365020,3.23,172.49,172.45,3.31]
[1752683365327,1.0,172.5,172.44,3.31]
[1752683365528,1.0,172.5,172.45,7.53924716]
[1752683365728,3.23,172.49,172.45,0.04037435]
[1752683365919,3.23,172.49,172.46,10.84924716]
[1752683366119,1.0,172.5,172.49,5.7955]
[1752683366629,1.0,172.5,172.45,0.04037435]
[1752683366820,3.23,172.46,172.45,0.04037435]
[1752683367021,1.0,172.5,172.47,3.31]
[1752683367331,0.04041596,172.49,172.48,9.1058]
[1752683368333,0.04041596,172.49,172.48,5.7958]
[1752683368622,0.04041596,172.49,172.48,9.1058]
[1752683368823,3.27041596,172.49,172.48,5.7958]
[1752683369531,1.596e-05,172.49,172.48,9.1058]
[1752683369732,1.596e-05,172.49,172.48,16.64504716]
[1752683370134,1.596e-05,172.49,172.48,5.7958]
[1752683370730,3.23,172.48,172.38,10.84924716]
[1752683370924,7.53926312,172.49,172.38,3.31]
[1752683370925,3.23,172.46,172.38,3.31]
[1752683371128,3.23,172.45,172.38,3.31]
[1752683371627,501.88,172.5,172.44,5.7972]
[1752683371831,3.23,172.48,172.41,3.31]
[1752683372335,3.23,172.48,172.39,3.31]
[1752683372825,3.23,172.45,172.42,0.04412283]
[1752683373027,3.23,172.44,172.42,0.04412283]
[1752683373223,3.23,172.43,172.36,3.31]
[1752683374130,3.23,172.47,172.4,7.53924716]
[1752683374329,3.23,172.47,172.43,5.7974]
[1752683374531,3.23,172.47,172.37,7.53924716]
[1752683374725,3.26666036,172.41,172.35,3.31]
[1752683375034,183.14,172.48,172.42,0.03773917]
[1752683375631,183.14,172.48,172.4,3.32]
[1752683375837,183.14,172.48,172.4,10.85924716]
[1752683376034,1.0,172.5,172.4,3.32]
[1752683376333,1.0,172.5,172.49,3.32]
[1752683376731,1.0,172.5,172.48,5.7958]
[1752683376930,1.0,172.5,172.49,3.32]
[1752683377433,1.0,172.5,172.48,5.7958]
[1752683377735,1.0,172.5,172.48,0.03747457]
[1752683378330,3.23,172.49,172.48,0.03747457]
[1752683378532,3.23,172.49,172.3,7.53924716]
[1752683378533,3.23,172.49,172.4,3.32]
[1752683379032,7.53924716,172.48,172.4,3.32]
[1752683379229,3.23,172.47,172.4,3.32]
[1752683379430,3.23,172.44,172.27,500.88]
[1752683379628,3.23,172.44,172.36,5.7997]
[1752683379629,9.0272,172.44,172.36,5.7997]
[1752683379839,3.23,172.44,172.34,3.32]
[1752683380137,3.23,172.39,172.33,5.8008]
[1752683380328,10.76924716,172.39,172.3,3.32]
[1752683380530,3.23,172.38,172.3,3.32]
[1752683380730,198.0,172.4,172.3,5.8017]
[1752683380731,3.23,172.36,172.3,5.8017]
[1752683380932,3.23,172.34,172.27,3.32]
[1752683381132,3.23,172.32,172.22,3.32]
[1752683381645,3.23,172.32,172.19,3.32]
[1752683381836,3.27353623,172.29,172.22,3.32]
[1752683382033,0.04353623,172.29,172.22,3.32]
[1752683382230,0.04353623,172.29,172.21,12.61036641]
[1752683382231,3.23,172.32,172.28,5.8023]
[1752683382432,3.23,172.31,172.25,3.32]
[1752683382639,0.03981598,172.27,172.11,500.86]
[1752683382834,3.23,172.26,172.23,3.32]
[1752683383032,3.23,172.26,172.19,12.61036641]
[1752683383231,12.61036641,172.27,172.21,3.32]
[1752683383534,12.61036641,172.27,172.22,5.8045]
[1752683383535,3.26750601,172.26,172.22,5.8045]
[1752683383840,3.26750601,172.26,172.2,5.8049]
[1752683384029,12.64787242,172.26,172.18,3.32]
[1752683384229,3.23,172.25,172.18,3.32]
[1752683385430,3.23,172.25,172.24,5.8039]
[1752683385635,3.23,172.25,172.21,3.32]
[1752683385840,0.03750601,172.26,172.25,5.8036]
[1752683386041,0.03750601,172.26,172.11,500.86]
[1752683386042,3.26750601,172.26,172.19,3.32]
[1752683386639,3.23,172.26,172.25,5.8036]
[1752683386935,199.78,172.27,172.11,500.86]
[1752683387242,3.2,172.26,172.18,3.45]
[1752683387738,500.86,172.35,172.21,3.45]
[1752683387931,213.43036641,172.34,172.23,3.45]
[1752683388132,219.23116641,172.34,172.29,5.8022]
[1752683388638,200.82,172.34,172.26,3.45]
[1752683389243,0.03777715,172.32,172.26,3.45]
[1752683389744,0.03777715,172.32,172.27,16.06036641]
[1752683389940,0.03777715,172.32,172.28,12.61036641]
[1752683390142,3.2,172.35,172.33,5.8008]
[1752683390440,3.2,172.34,172.31,3.45]
[1752683390635,0.04247922,172.32,172.31,3.45]
[1752683390841,0.04247922,172.32,172.31,9.2515]
[1752683391943,7.922e-05,172.32,172.31,9.2515]
[1752683394241,7.922e-05,172.32,172.3,0.04008117]
[1752683395242,3.2,172.31,172.3,0.04008117]
[1752683395441,7.922e-05,172.32,172.3,0.04008117]
[1752683396138,7.922e-05,172.32,172.31,5.8015]
[1752683397049,7.922e-05,172.32,172.31,9.2515]
[1752683397345,7.922e-05,172.32,172.31,5.8015]
[1752683398538,7.922e-05,172.32,172.3,0.04008117]
[1752683399342,3.20007922,172.32,172.3,0.04008117]
[1752683399543,3.2,172.31,172.3,0.04008117]
[1752683399745,202.48,172.31,172.24,3.45]
[1752683400240,199.22,172.32,172.26,12.61036641]
[1752683400444,208.2213,172.32,172.28,3.45]
[1752683400742,3.2,172.31,172.2,12.61036641]
[1752683401047,3.2,172.28,172.21,3.45]
[1752683401247,3.2,172.31,172.25,3.45]
[1752683401445,3.2,172.28,172.25,3.45]
[1752683401646,0.0398825,172.3,172.23,5.8041]
[1752683401850,3.2,172.28,172.2,3.45]
[1752683402046,3.2,172.25,172.14,3.45]
[1752683402348,3.2,172.23,172.14,3.45]
[1752683402547,199.58,172.24,172.17,3.45]
[1752683402749,3.2,172.29,172.23,3.45]
[1752683403050,208.6022,172.29,172.23,3.45]
[1752683403247,3.23896895,172.28,172.19,3.45]
[1752683403649,9.0038,172.25,172.19,3.45]
[1752683403946,3.2,172.25,172.19,3.45]
[1752683404155,212.21036641,172.29,172.19,3.45]
[1752683404349,0.0424852,172.24,172.22,3.45]
[1752683404651,199.6,172.29,172.22,3.45]
[1752683404851,199.6,172.29,172.28,9.2525]
[1752683405050,199.6,172.29,172.28,5.8025]
[1752683405552,199.6,172.29,172.28,9.2525]
[1752683406352,202.32,172.34,172.31,5.8012]
[1752683406547,202.32,172.34,172.27,3.48727579]
[1752683406548,3.2,172.33,172.27,3.48727579]
[1752683406855,3.2,172.33,172.27,3.45]
[1752683407055,5.8018,172.31,172.28,0.0415057]
[1752683407255,3.2,172.3,172.28,0.0415057]
[1752683407455,3.2,172.3,172.28,5.8440057]
[1752683407656,3.2,172.35,172.29,3.45]
[1752683408152,3.2,172.34,172.33,5.8007]
[1752683408351,3.2,172.34,172.3,3.49224444]
[1752683408556,3.2,172.34,172.32,5.8012]
[1752683409350,202.38,172.36,172.3,0.04224444]
[1752683409549,3.2,172.35,172.33,5.8007]
[1752683410060,3.2,172.34,172.32,3.45]
[1752683410358,3.2,172.34,172.32,9.2509]
[1752683411060,3.2,172.35,172.33,5.8009]
[1752683411672,199.18,172.36,172.34,3.45]
[1752683412071,202.38,172.36,172.34,3.45]
[1752683412472,202.38,172.36,172.33,3.45]
[1752683413278,202.38,172.36,172.34,5.8005]
[1752683413479,3.2,172.34,172.31,3.45]
[1752683413676,3.2,172.35,172.3,0.04224444]
[1752683414071,3.2,172.32,172.24,3.45]
[1752683414374,3.2,172.32,172.16,11.6132]
[1752683414375,3.2,172.28,172.26,3.45]
[1752683414872,3.2,172.29,172.24,3.45]
[1752683415074,3.2,172.27,172.24,3.45]
[1752683415273,201.06,172.26,172.21,3.45]
[1752683415471,3.2,172.25,172.22,3.45]
[1752683415676,197.86,172.26,172.21,3.45]
[1752683415973,197.86,172.26,172.25,3.45]
[1752683416180,12.81937236,172.35,172.26,3.45]
[1752683416372,3.2,172.34,172.31,9.2513]
[1752683416577,197.88,172.35,172.28,3.45]
[1752683416876,3.32,172.3,172.28,3.45]
[1752683417077,197.9,172.3,172.24,12.61012119]
[1752683417277,197.87933397,172.32,172.28,3.21]
[1752683417477,197.84,172.32,172.31,9.0115]
[1752683417877,197.88247623,172.32,172.31,9.0115]
[1752683419571,3.32,172.41,172.32,3.21]
[1752683419780,197.38,172.4,172.32,12.61012119]
[1752683420078,197.38,172.4,172.33,3.21]
[1752683420271,200.7,172.4,172.38,5.7989]
[1752683420876,3.32,172.39,172.37,0.03759837]
[1752683421577,3.32,172.39,172.38,5.7992]
[1752683421970,3.32,172.39,172.37,5.83699837]
[1752683422173,3.32,172.39,172.37,0.03759837]
[1752683422378,197.38,172.4,172.37,3.24759837]
[1752683422682,197.38,172.4,172.39,9.0088]
[1752683423371,16.13937236,172.44,172.37,3.24759837]
[1752683423575,197.38,172.4,172.37,0.03759837]
[1752683423778,197.38,172.4,172.39,3.21]
[1752683423974,197.38,172.4,172.39,9.0088]
[1752683424182,0.04321525,172.42,172.39,3.21]
[1752683424480,0.04321525,172.42,172.41,5.7982]
[1752683424675,0.04321525,172.42,172.41,9.0082]
[1752683426074,197.5,172.45,172.44,9.0072]
[1752683426281,1.0,172.5,172.43,3.21]
[1752683427080,1.0,172.5,172.46,5.7964]
[1752683427280,9.1155,172.49,172.45,0.03705589]
[1752683427483,4.32,172.5,172.45,3.24705589]
[1752683427682,3.32,172.49,172.46,3.21]
[1752683428076,1.0,172.5,172.49,5.7955]
[1752683428376,1.0,172.5,172.46,3.21]
[1752683429782,1.0,172.5,172.48,3.21]
[1752683430185,1.0,172.5,172.47,3.21]
[1752683430381,3.32,172.49,172.45,3.24705589]
[1752683430582,5.7955,172.49,172.45,3.24705589]
[1752683430786,3.32,172.46,172.45,0.03705589]
[1752683430984,201.92,172.46,172.45,0.03705589]
[1752683432083,198.6,172.46,172.45,3.24705589]
[1752683432284,199.54,172.5,172.49,5.7955]
[1752683432485,3.32,172.49,172.47,3.21]
[1752683432678,199.54,172.5,172.46,3.21]
[1752683432878,202.86,172.5,172.48,3.21]
[1752683433078,202.86,172.5,172.45,0.03705589]
[1752683433287,3.32,172.49,172.46,3.21]
[1752683433588,3.32,172.49,172.45,0.03705589]
[1752683433781,3.32,172.49,172.47,3.21]
[1752683433982,3.32,172.49,172.46,5.7964]
[1752683434284,3.32,172.49,172.46,3.21]
[1752683434484,3.32,172.49,172.47,5.7959]
[1752683434683,3.32,172.49,172.46,3.21]
[1752683435082,199.54,172.5,172.48,3.21]
[1752683435285,199.54,172.5,172.49,3.21]
[1752683435478,199.54,172.5,172.49,9.0055]
[1752683436186,3.32,172.49,172.46,3.21]
[1752683436689,199.54,172.5,172.46,3.21]